bitfinex/quotes_BTCUSD_20251116
["timestamp","ask_amount","ask_price","bid_price","bid_amount"]
[1763294480078,0.0115,95695.0,95693.0,0.10515645]
[1763294480280,0.0115,95700.0,95693.0,0.10515645]
[1763294481658,0.0115,95700.0,95693.0,0.10415645]
[1763294481958,0.0115,95700.0,95693.0,0.10515645]
[1763294483250,0.0115,95706.0,95693.0,0.10515645]
[1763294483449,0.03239221,95705.0,95693.0,0.10515645]
[1763294483635,0.0115,95710.0,95694.0,0.00915]
[1763294484339,0.0115,95710.0,95694.0,0.03382]
[1763294484555,0.0115,95718.0,95709.0,0.02529]
[1763294485054,0.0115,95717.0,95709.0,0.02529]
[1763294485260,0.0115,95717.0,95709.0,0.00915]
[1763294485465,0.0115,95724.0,95718.0,0.00915]
[1763294486896,0.0115,95729.0,95718.0,0.00915]
[1763294487598,0.03518,95729.0,95718.0,0.00915]
[1763294487961,0.02368,95728.0,95718.0,0.00915]
[1763294488599,0.02368,95728.0,95712.0,0.00915]
[1763294488804,0.02368,95728.0,95715.0,0.10402093]
[1763294489000,0.02368,95728.0,95712.0,0.00915]
[1763294489616,0.02368,95728.0,95712.0,0.015815]
[1763294490621,0.02368,95728.0,95712.0,0.00915]
[1763294491999,0.02368,95728.0,95709.0,0.00915]
[1763294492361,0.02909,95710.0,95706.0,0.02368]
[1763294492519,0.0125,95718.0,95708.0,0.10402093]
[1763294492864,0.03515,95718.0,95708.0,0.10402093]
[1763294493023,0.03515,95718.0,95709.0,0.01368509]
[1763294493650,0.0125,95718.0,95709.0,0.01368509]
[1763294493804,0.0125,95718.0,95708.0,0.10402093]
[1763294496654,0.0125,95718.0,95706.0,0.02368]
[1763294496866,0.03515,95718.0,95706.0,0.02368]
[1763294497290,0.0125,95718.0,95706.0,0.02368]
[1763294498026,0.0125,95718.0,95708.0,0.10402093]
[1763294498230,0.0125,95718.0,95709.0,0.01601609]
[1763294499101,0.0115,95730.0,95709.0,0.01601609]
[1763294499102,0.0125,95736.0,95717.0,0.02484]
[1763294499304,0.01942029,95735.0,95718.0,0.01569]
[1763294499513,0.04207029,95735.0,95718.0,0.01569]
[1763294499729,0.02265,95735.0,95718.0,0.01569]
[1763294499951,0.02265,95734.0,95718.0,0.02142]
[1763294500181,0.01941957,95733.0,95718.0,0.02142]
[1763294500583,0.02265,95732.0,95718.0,0.02142]
[1763294500999,0.0125,95731.0,95718.0,0.02142]
[1763294501573,0.001,95734.0,95730.0,0.01569]
[1763294501754,0.02265,95745.0,95739.0,0.00915]
[1763294501958,0.03515,95745.0,95739.0,0.00915]
[1763294502136,0.0125,95745.0,95739.0,0.00915]
[1763294502744,0.01254514,95745.0,95739.0,0.00915]
[1763294512242,4.514e-05,95745.0,95739.0,0.00915]
[1763294512621,4.514e-05,95745.0,95740.0,0.12733093]
[1763294512923,4.514e-05,95745.0,95741.0,0.01364809]
[1763294513159,4.514e-05,95745.0,95741.0,0.03695809]
[1763294513565,4.514e-05,95745.0,95742.0,0.02331]
[1763294515144,4.514e-05,95745.0,95742.0,0.02431]
[1763294520859,4.514e-05,95745.0,95742.0,0.04519947]
[1763294521059,4.514e-05,95745.0,95742.0,0.06553962]
[1763294521278,4.514e-05,95745.0,95743.0,0.02331]
[1763294521893,4.514e-05,95745.0,95743.0,0.04419925]
[1763294522413,4.514e-05,95745.0,95744.0,0.02465]
[1763294522972,4.514e-05,95745.0,95744.0,0.04553903]
[1763294523177,4.514e-05,95745.0,95744.0,0.04115904]
[1763294523805,4.514e-05,95745.0,95744.0,0.04215904]
[1763294524038,4.514e-05,95745.0,95744.0,0.02127001]
[1763294524305,4.514e-05,95745.0,95744.0,0.06480904]
[1763294524949,0.03138076,95774.0,95745.0,0.01217]
[1763294525149,0.00045161,95774.0,95773.0,0.02839]
[1763294525588,0.00086061,95774.0,95773.0,0.02839]
[1763294526489,0.02023245,95774.0,95773.0,0.02839]
[1763294531942,0.02023245,95774.0,95773.0,0.05304]
[1763294533839,0.03661515,95774.0,95773.0,0.05304]
[1763294534043,0.03661515,95774.0,95773.0,0.060692]
[1763294535069,0.03661515,95774.0,95773.0,0.059372]
[1763294535882,0.03661515,95774.0,95773.0,0.02839]
[1763294536110,0.03661515,95774.0,95773.0,0.01174]
[1763294538479,0.03661515,95774.0,95773.0,0.03447]
[1763294538881,0.05299858,95774.0,95773.0,0.03447]
[1763294539595,0.03661515,95774.0,95773.0,0.03447]
[1763294540231,0.03661515,95774.0,95773.0,0.040265]
[1763294540435,0.03661515,95774.0,95773.0,0.017535]
[1763294541203,0.03661515,95774.0,95773.0,0.01174]
[1763294541417,0.03661515,95774.0,95773.0,0.03447]
[1763294543208,0.03661515,95774.0,95773.0,0.01174]
[1763294544183,0.02023245,95774.0,95773.0,0.01174]
[1763294544934,0.02023245,95774.0,95773.0,0.03447]
[1763294545946,0.02023245,95774.0,95773.0,0.017535]
[1763294546484,0.02023245,95774.0,95773.0,0.01174]
[1763294546680,0.02023245,95774.0,95773.0,0.03447]
[1763294550884,0.02023245,95774.0,95773.0,0.01174]
[1763294551243,0.02023245,95774.0,95773.0,0.03447]
[1763294551689,0.02023245,95774.0,95773.0,0.01174]
[1763294551887,0.00086061,95774.0,95773.0,0.01174]
[1763294552865,0.01724207,95774.0,95773.0,0.01174]
[1763294553367,0.00086061,95774.0,95773.0,0.01174]
[1763294557740,0.01724212,95774.0,95773.0,0.01174]
[1763294557983,0.00086061,95774.0,95773.0,0.01174]
[1763294559129,0.00086061,95774.0,95773.0,0.029862]
[1763294560528,0.00086061,95774.0,95773.0,0.01174]
[1763294560741,0.01724227,95774.0,95773.0,0.01174]
[1763294566466,0.03362382,95774.0,95773.0,0.01174]
[1763294567085,0.01724227,95774.0,95773.0,0.01174]
[1763294568341,0.01674227,95774.0,95773.0,0.02736]
[1763294568560,0.01674227,95774.0,95773.0,0.01174]
[1763294569884,0.01674227,95774.0,95773.0,0.03262271]
[1763294570109,0.03312336,95774.0,95773.0,0.01735027]
[1763294571208,0.0167417,95774.0,95773.0,0.01835027]
[1763294572305,0.0167417,95774.0,95773.0,0.01935027]
[1763294572467,0.0167417,95774.0,95773.0,0.01835027]
[1763294572663,0.0167417,95774.0,95773.0,0.01935027]
[1763294572875,0.0167417,95774.0,95773.0,0.01835027]
[1763294573510,0.0167417,95774.0,95773.0,0.01935027]
[1763294574379,0.0167417,95774.0,95773.0,0.01925027]
[1763294580342,0.00036061,95774.0,95773.0,0.01925027]
[1763294580534,0.00036061,95774.0,95773.0,0.0387125]
[1763294581188,0.00036061,95774.0,95773.0,0.01925027]
[1763294581538,0.00036061,95774.0,95773.0,0.04013298]
[1763294582039,0.00036061,95774.0,95773.0,0.01925027]
[1763294582572,0.00036061,95774.0,95773.0,0.04013298]
[1763294583357,0.00036061,95774.0,95773.0,0.22955172]
[1763294583796,0.00036061,95774.0,95773.0,0.23100599]
[1763294584509,0.00036061,95774.0,95773.0,0.15864]
[1763294584671,0.00036061,95774.0,95773.0,0.01264]
[1763294585325,0.00036061,95774.0,95773.0,0.01364]
[1763294587531,0.00036061,95774.0,95773.0,0.02842823]
[1763294587738,0.00036061,95774.0,95773.0,0.07794145]
[1763294587881,0.00036061,95774.0,95773.0,0.12310845]
[1763294588943,0.00036061,95774.0,95773.0,0.10222574]
[1763294589500,0.00036061,95774.0,95773.0,0.24822574]
[1763294591525,0.00036061,95774.0,95773.0,0.27328372]
[1763294592471,0.00036061,95774.0,95773.0,0.22986498]
[1763294592761,0.00036061,95774.0,95773.0,0.15964]
[1763294593864,0.00036061,95774.0,95773.0,0.15864]
[1763294594284,0.01674127,95774.0,95773.0,0.15964]
[1763294594494,0.01674127,95774.0,95773.0,0.15864]
[1763294594824,0.00036061,95774.0,95773.0,0.15964]
[1763294596655,0.00036061,95774.0,95773.0,0.19080109]
[1763294597949,0.0167421,95774.0,95773.0,0.19080109]
[1763294598832,0.0167421,95774.0,95773.0,0.2116838]
[1763294599527,0.0167421,95774.0,95773.0,0.19080109]
[1763294600991,0.03312246,95774.0,95773.0,0.2116838]
[1763294601717,0.0002,95810.0,95773.0,0.2116838]
[1763294601718,0.0002,95810.0,95774.0,0.04341874]
[1763294601875,0.01944892,95809.0,95793.0,0.10402093]
[1763294602301,0.01944892,95809.0,95794.0,0.03613]
[1763294602616,0.00057243,95795.0,95794.0,0.03613]
[1763294602792,0.00057243,95795.0,95794.0,0.01166]
[1763294602994,0.00057243,95795.0,95794.0,0.02322809]
[1763294604876,0.00057243,95795.0,95794.0,0.01166]
[1763294614444,0.00057243,95795.0,95794.0,0.03587]
[1763294615035,0.00057243,95795.0,95794.0,0.01166]
[1763294615723,0.00057243,95795.0,95794.0,0.03587]
[1763294617562,0.00057243,95795.0,95794.0,0.01166]
[1763294633042,0.00057243,95795.0,95794.0,0.01266]
[1763294633551,0.00057243,95795.0,95794.0,0.01366]
[1763294634158,0.00057243,95795.0,95794.0,0.03787]
[1763294634568,0.00057243,95795.0,95794.0,0.01366]
[1763294635165,0.00057243,95795.0,95794.0,0.01266]
[1763294635344,0.00057243,95795.0,95794.0,0.01166]
[1763294638649,0.00057243,95795.0,95794.0,0.028592]
[1763294640273,0.00057243,95795.0,95794.0,0.01166]
[1763294643063,0.00057243,95795.0,95794.0,0.01266]
[1763294643941,0.00057243,95795.0,95794.0,0.03353813]
[1763294644132,0.00057243,95795.0,95794.0,0.01266]
[1763294644333,0.00057243,95795.0,95794.0,0.07795687]
[1763294644508,0.00057243,95795.0,95794.0,0.08691856]
[1763294644713,0.00057243,95795.0,95794.0,0.09109987]
[1763294644893,0.00057243,95795.0,95794.0,0.09009987]
[1763294645094,0.00057243,95795.0,95794.0,0.06922174]
[1763294645719,0.00057243,95795.0,95794.0,0.07022174]
[1763294646181,0.00057243,95795.0,95794.0,0.09209987]
[1763294647364,0.00057243,95795.0,95794.0,0.12718329]
[1763294648328,0.00057243,95795.0,95794.0,0.09209987]
[1763294648770,0.00057243,95795.0,95794.0,0.12718329]
[1763294649343,0.00057243,95795.0,95794.0,0.09209987]
[1763294649582,0.00057243,95795.0,95794.0,0.1627017]
[1763294650500,0.00057243,95795.0,95794.0,0.14182357]
[1763294650714,0.00057243,95795.0,95794.0,0.1627017]
[1763294650913,0.00057243,95795.0,95794.0,0.12718329]
[1763294652082,0.00057243,95795.0,95794.0,0.09209987]
[1763294652282,0.00057243,95795.0,95794.0,0.12718329]
[1763294652899,0.00057243,95795.0,95794.0,0.07122174]
[1763294654526,0.00057243,95795.0,95794.0,0.07022174]
[1763294654909,0.00057243,95795.0,95794.0,0.06922174]
[1763294655102,0.00057243,95795.0,95794.0,0.07022174]
[1763294658761,0.00057243,95795.0,95794.0,0.09109987]
[1763294658955,0.00057243,95795.0,95794.0,0.16608062]
[1763294659758,0.00057243,95795.0,95794.0,0.09109987]
[1763294664579,0.00057243,95795.0,95794.0,0.07022174]
[1763294668275,0.00057243,95795.0,95794.0,0.14527838]
[1763294668474,0.00057243,95795.0,95794.0,0.29127838]
[1763294669290,0.00057243,95795.0,95794.0,0.21622174]
[1763294673458,0.00057243,95795.0,95794.0,0.30998792]
[1763294674239,0.00057243,95795.0,95794.0,0.21622174]
[1763294685102,0.00057243,95795.0,95794.0,0.30998792]
[1763294685866,0.00057243,95795.0,95794.0,0.16398792]
[1763294686067,0.00057243,95795.0,95794.0,0.18486605]
[1763294686309,0.00057243,95795.0,95794.0,0.09109987]
[1763294688238,0.00057243,95795.0,95794.0,0.07022174]
[1763294688416,0.00057243,95795.0,95794.0,0.09109987]
[1763294689118,0.00057243,95795.0,95794.0,0.07022174]
[1763294690324,0.00057243,95795.0,95794.0,0.16424277]
[1763294694434,0.00057243,95795.0,95794.0,0.07022174]
[1763294697232,0.00057243,95795.0,95794.0,0.09109987]
[1763294698207,5.32e-06,95795.0,95794.0,0.10613987]
[1763294698408,5.32e-06,95795.0,95794.0,0.09109987]
[1763294698845,5.32e-06,95795.0,95794.0,0.07022174]
[1763294699257,5.32e-06,95795.0,95794.0,0.09109987]
[1763294699609,5.32e-06,95795.0,95794.0,0.20129987]
[1763294699810,5.32e-06,95795.0,95794.0,0.07022174]
[1763294700453,5.32e-06,95795.0,95794.0,0.09109987]
[1763294700873,5.32e-06,95795.0,95794.0,0.23709987]
[1763294701078,5.32e-06,95795.0,95794.0,0.21622174]
[1763294701279,5.32e-06,95795.0,95794.0,0.53922174]
[1763294702056,5.32e-06,95795.0,95794.0,0.67049439]
[1763294702599,5.32e-06,95795.0,95794.0,0.7391854]
[1763294702775,5.32e-06,95795.0,95794.0,0.60791275]
[1763294702945,5.32e-06,95795.0,95794.0,0.46391275]
[1763294703998,0.00033548,95810.0,95801.0,0.04341874]
[1763294704160,0.00033548,95810.0,95809.0,0.16247967]
[1763294704362,0.00033548,95810.0,95809.0,0.16831453]
[1763294704703,0.00033548,95810.0,95809.0,0.17249536]
[1763294705300,0.00033548,95810.0,95809.0,0.17349536]
[1763294705690,0.00033548,95810.0,95809.0,0.17449536]
[1763294705890,0.00033548,95810.0,95809.0,0.20520874]
[1763294706246,0.00033548,95810.0,95809.0,0.52820874]
[1763294706433,0.00033548,95810.0,95809.0,0.5847691]
[1763294707311,0.00033548,95810.0,95809.0,0.5837691]
[1763294707633,0.00033548,95810.0,95809.0,0.5857691]
[1763294707998,0.00033548,95810.0,95809.0,0.7317691]
[1763294708218,0.0002,95820.0,95810.0,0.37641873]
[1763294708426,0.0002989,95820.0,95819.0,0.05845874]
[1763294708962,0.0002989,95820.0,95817.0,0.04341874]
[1763294709112,0.0002989,95820.0,95819.0,0.00418014]
[1763294709519,0.0002989,95820.0,95819.0,0.07925786]
[1763294709714,0.0002989,95820.0,95819.0,0.1226766]
[1763294709715,0.00098009,95820.0,95819.0,0.1226766]
[1763294709917,0.00098009,95820.0,95819.0,0.13708626]
[1763294710372,0.00098009,95820.0,95819.0,0.06200854]
[1763294711506,0.00098009,95820.0,95819.0,0.06300854]
[1763294718312,0.00098009,95820.0,95819.0,0.2048284]
[1763294720423,0.00098009,95820.0,95819.0,0.2038284]
[1763294721622,0.00098009,95820.0,95819.0,0.002]
[1763294723222,0.00098009,95820.0,95819.0,0.02472]
[1763294728726,0.00098009,95820.0,95819.0,0.04559268]
[1763294729115,0.00098009,95820.0,95819.0,0.02287268]
[1763294730343,0.00098009,95820.0,95819.0,0.04541874]
[1763294730506,0.00098009,95820.0,95819.0,0.08657529]
[1763294731719,0.00098009,95820.0,95819.0,0.06570261]
[1763294733072,0.00098009,95820.0,95819.0,0.21170261]
[1763294733275,0.00098009,95820.0,95819.0,0.06570261]
[1763294733790,0.00098009,95820.0,95819.0,0.08657529]
[1763294735700,0.00098009,95820.0,95819.0,0.002]
[1763294735901,0.01007775,95820.0,95819.0,0.002]
[1763294736101,0.06139679,95820.0,95819.0,0.002]
[1763294736444,0.06139679,95820.0,95777.0,0.01172]
[1763294736723,0.06139679,95820.0,95760.0,0.10558778]
[1763294736724,0.04341874,95818.0,95762.0,0.02332]
[1763294736882,0.04341874,95816.0,95762.0,0.02332]
[1763294737081,0.04341874,95814.0,95762.0,0.02332]
[1763294737265,0.37377974,95813.0,95769.0,0.01172]
[1763294737465,0.4094309,95812.0,95769.0,0.01172]
[1763294737701,0.3961906,95811.0,95769.0,0.01172]
[1763294737909,0.041856,95810.0,95769.0,0.01172]
[1763294738110,0.37294308,95809.0,95769.0,0.01172]
[1763294738427,0.36667782,95808.0,95769.0,0.01172]
[1763294738627,0.39106208,95807.0,95773.0,0.10402093]
[1763294738829,0.01944514,95806.0,95772.0,0.03504]
[1763294739126,0.01944514,95805.0,95772.0,0.01172]
[1763294739420,0.01944514,95804.0,95772.0,0.01172]
[1763294739623,0.04779382,95803.0,95772.0,0.01172]
[1763294739824,0.01944514,95802.0,95772.0,0.01172]
[1763294740001,0.02539652,95801.0,95772.0,0.01172]
[1763294740202,0.01944514,95800.0,95772.0,0.01172]
[1763294740390,0.00595138,95801.0,95772.0,0.01172]
[1763294740592,0.01172,95804.0,95772.0,0.01172]
[1763294740804,0.01933033,95803.0,95772.0,0.01172]
[1763294740992,0.001,95802.0,95772.0,0.01172]
[1763294741179,0.001,95801.0,95773.0,0.12734093]
[1763294741390,0.001,95801.0,95774.0,0.05928058]
[1763294741594,0.002,95801.0,95774.0,0.03839809]
[1763294741842,0.002,95801.0,95775.0,0.02332]
[1763294741843,0.001,95801.0,95775.0,0.02332]
[1763294742054,0.001,95801.0,95776.0,0.02088205]
[1763294742194,0.001,95801.0,95776.0,0.03955616]
[1763294742393,0.001,95801.0,95777.0,0.02332]
[1763294742753,0.001,95802.0,95778.0,0.02088162]
[1763294742953,0.001,95802.0,95779.0,0.0208814]
[1763294743168,0.002,95802.0,95780.0,0.02088118]
[1763294743454,0.01196523,95804.0,95781.0,0.00628753]
[1763294743686,0.00024523,95804.0,95803.0,0.02699]
[1763294744420,0.00024523,95804.0,95794.0,0.02087813]
[1763294744605,0.00024523,95804.0,95797.0,0.01172]
[1763294747400,0.00024523,95804.0,95790.0,0.01172]
[1763294747713,0.00024523,95804.0,95791.0,0.10402093]
[1763294748272,0.00024523,95804.0,95790.0,0.01172]
[1763294749279,0.00024523,95804.0,95791.0,0.10402093]
[1763294749478,0.00024523,95804.0,95792.0,0.03722609]
[1763294749684,0.00024523,95804.0,95792.0,0.05810466]
[1763294749997,0.00024523,95804.0,95790.0,0.01172]
[1763294750701,0.00024523,95804.0,95791.0,0.10402093]
[1763294751514,0.00024523,95804.0,95790.0,0.01172]
[1763294752031,0.00024523,95804.0,95791.0,0.10402093]
[1763294755832,0.00024523,95804.0,95791.0,0.12734093]
[1763294756029,0.00024523,95804.0,95791.0,0.14124702]
[1763294756575,0.00024523,95804.0,95791.0,0.12734093]
[1763294757354,0.01934124,95803.0,95791.0,0.12734093]
[1763294757804,0.01934124,95803.0,95791.0,0.10402093]
[1763294757926,0.01934124,95803.0,95790.0,0.01172]
[1763294758540,0.01934124,95803.0,95791.0,0.10402093]
[1763294762337,0.01934124,95802.0,95792.0,0.02087857]
[1763294762549,0.01934124,95801.0,95792.0,0.02087857]
[1763294762679,0.01934124,95800.0,95792.0,0.02087857]
[1763294762876,0.01934124,95799.0,95793.0,0.12704093]
[1763294763100,0.00024523,95804.0,95793.0,0.12704093]
[1763294763304,0.00024523,95804.0,95803.0,0.02825]
[1763294763506,0.01963875,95804.0,95803.0,0.02825]
[1763294763702,0.01963875,95804.0,95803.0,0.0116]
[1763294763923,0.00024523,95804.0,95803.0,0.0116]
[1763294765618,0.01967831,95804.0,95803.0,0.0116]
[1763294766443,0.00024523,95804.0,95803.0,0.03247617]
[1763294768622,0.01968639,95804.0,95803.0,0.03247617]
[1763294768822,0.00024523,95804.0,95803.0,0.0116]
[1763294769249,0.00024523,95804.0,95803.0,0.03247617]
[1763294769834,0.00024523,95804.0,95803.0,0.03918579]
[1763294770037,0.00024523,95804.0,95803.0,0.03247617]
[1763294772781,0.00024523,95804.0,95803.0,0.03347617]
[1763294773225,0.00024523,95804.0,95803.0,0.03447617]
[1763294773585,0.00024523,95804.0,95803.0,0.07789491]
[1763294775020,0.00024523,95804.0,95803.0,0.05701874]
[1763294775597,0.00024523,95804.0,95803.0,0.06429875]
[1763294777636,0.00024523,95804.0,95803.0,0.08517492]
[1763294777784,0.00024523,95804.0,95803.0,0.23117492]
[1763294777991,0.00024523,95804.0,95803.0,0.21029875]
[1763294780678,0.00024523,95804.0,95803.0,0.20301874]
[1763294780832,0.00024523,95804.0,95803.0,0.22800874]
[1763294781031,0.00024523,95804.0,95803.0,0.20301874]
[1763294781675,0.00024523,95804.0,95803.0,0.20101874]
[1763294782017,0.00024523,95804.0,95803.0,0.20201874]
[1763294782153,0.00024523,95804.0,95803.0,0.20301874]
[1763294782488,0.00024523,95804.0,95803.0,0.20201874]
[1763294782911,0.00024523,95804.0,95803.0,0.20301874]
[1763294783720,0.00024523,95804.0,95803.0,0.22448061]
[1763294785578,0.00024523,95804.0,95803.0,0.20301874]
[1763294799796,0.00024523,95804.0,95803.0,0.27809646]
[1763294800596,0.00024523,95804.0,95803.0,0.20301874]
[1763294802045,0.00024523,95804.0,95803.0,0.28324605]
[1763294802484,0.00024523,95804.0,95803.0,0.28224605]
[1763294802696,0.00024523,95804.0,95803.0,0.31163066]
[1763294802905,0.00024523,95804.0,95803.0,0.31263066]
[1763294803546,0.00024523,95804.0,95803.0,0.31163066]
[1763294803968,0.00024523,95804.0,95803.0,0.31263066]
[1763294806096,0.00024523,95804.0,95803.0,0.40649844]
[1763294806367,0.00024523,95804.0,95803.0,0.31263066]
[1763294806577,0.00024523,95804.0,95803.0,0.4065482]
[1763294807453,0.00024523,95804.0,95803.0,0.31263066]
[1763294809362,0.0002989,95820.0,95803.0,0.31263066]
[1763294809363,0.0002989,95820.0,95806.0,0.04341874]
[1763294809603,0.0002989,95820.0,95819.0,0.17457967]
[1763294810133,0.0002989,95820.0,95819.0,0.15879967]
[1763294811509,0.0002989,95820.0,95819.0,0.15979967]
[1763294814897,0.0002989,95820.0,95819.0,0.11638093]
[1763294815098,0.0002989,95820.0,95819.0,0.01236]
[1763294816286,0.0002989,95820.0,95819.0,0.001]
[1763294816905,0.0002989,95820.0,95812.0,0.15711477]
[1763294817155,0.0002989,95820.0,95819.0,0.001]
[1763294817688,0.0002989,95820.0,95795.0,0.03569]
[1763294817884,0.0002989,95820.0,95819.0,0.001]
[1763294818460,0.0002989,95820.0,95795.0,0.03569]
[1763294820239,0.00073486,95820.0,95795.0,0.03569]
[1763294820556,0.0002989,95820.0,95803.0,0.01136]
[1763294820971,0.0002989,95820.0,95803.0,0.03569]
[1763294821310,0.0002989,95820.0,95808.0,0.10402093]
[1763294821526,0.0002989,95820.0,95819.0,0.01147]
[1763294821757,0.0002989,95820.0,95819.0,0.02804]
[1763294822972,0.0002989,95820.0,95819.0,0.04891268]
[1763294823372,0.0002989,95820.0,95810.0,0.02373]
[1763294823596,0.0002989,95820.0,95819.0,0.02804]
[1763294825805,0.0002989,95820.0,95819.0,0.01147]
[1763294826006,0.00073486,95820.0,95819.0,0.01147]
[1763294828665,0.00073486,95820.0,95819.0,0.04059846]
[1763294829022,0.00073486,95820.0,95819.0,0.01686846]
[1763294829225,0.00073486,95820.0,95819.0,0.03774114]
[1763294829426,0.00073486,95820.0,95819.0,0.01686846]
[1763294829624,0.00073486,95820.0,95819.0,0.03774114]
[1763294830819,0.00073486,95820.0,95819.0,0.03874114]
[1763294831021,0.00073486,95820.0,95819.0,0.03974114]
[1763294832624,0.00073486,95820.0,95819.0,0.18419591]
[1763294832826,0.00073486,95820.0,95819.0,0.18549591]
[1763294834213,0.00073486,95820.0,95819.0,0.16462323]
[1763294841261,0.0002,95860.0,95820.0,0.04341874]
[1763294841463,0.0002,95860.0,95829.0,0.11908093]
[1763294841674,0.00418047,95856.0,95829.0,0.11908093]
[1763294841869,0.00418047,95856.0,95829.0,0.10402093]
[1763294843338,0.00418047,95856.0,95829.0,0.12589143]
[1763294843748,0.01657073,95830.0,95829.0,0.12589143]
[1763294843987,0.0002,95830.0,95829.0,0.12589143]
[1763294844166,0.0002,95830.0,95829.0,0.11879407]
[1763294844565,0.0002,95830.0,95829.0,0.28541934]
[1763294844774,0.0002,95830.0,95829.0,0.14675477]
[1763294847005,0.0002,95830.0,95829.0,0.16960477]
[1763294847526,0.00047239,95830.0,95829.0,0.16960477]
[1763294848287,0.00047239,95830.0,95829.0,0.14675477]
[1763294848727,0.00047239,95830.0,95829.0,0.16960477]
[1763294849363,0.0168433,95830.0,95829.0,0.16960477]
[1763294849814,0.00047239,95830.0,95829.0,0.16960477]
[1763294850242,0.00047239,95830.0,95829.0,0.02385]
[1763294850449,0.00047239,95830.0,95829.0,0.001]
[1763294851139,0.00047239,95830.0,95829.0,0.02019529]
[1763294851389,0.00047239,95830.0,95829.0,0.001]
[1763294852134,0.00047239,95830.0,95829.0,0.01140079]
[1763294852360,0.00047239,95830.0,95829.0,0.001]
[1763294852617,0.00047239,95830.0,95829.0,0.06528924]
[1763294852867,0.01684196,95830.0,95829.0,0.06528924]
[1763294853085,0.01684196,95830.0,95829.0,0.04341874]
[1763294853314,0.01684196,95830.0,95829.0,0.06727381]
[1763294854650,0.01684196,95830.0,95829.0,0.06827381]
[1763294855725,0.01684196,95830.0,95829.0,0.001]
[1763294857662,0.01684196,95830.0,95823.0,0.01184]
[1763294857990,0.01656957,95830.0,95823.0,0.01184]
[1763294858162,0.01656957,95830.0,95824.0,0.02469]
[1763294860479,0.01656957,95830.0,95823.0,0.01184]
[1763294862295,0.01656957,95830.0,95824.0,0.02469]
[1763294863188,0.00024515,95829.0,95824.0,0.02469]
[1763294865072,0.00024515,95829.0,95824.0,0.02569]
[1763294865273,0.00024515,95829.0,95824.0,0.02669]
[1763294865607,0.00024515,95829.0,95824.0,0.02469]
[1763294865910,0.00024515,95829.0,95824.0,0.02569]
[1763294870242,0.00024515,95829.0,95824.0,0.001]
[1763294870846,0.01637117,95828.0,95824.0,0.001]
[1763294871181,0.00024515,95829.0,95824.0,0.001]
[1763294871760,0.00024515,95829.0,95823.0,0.01184]
[1763294872172,0.00024515,95829.0,95824.0,0.001]
[1763294872553,0.00024515,95829.0,95823.0,0.01184]
[1763294872961,0.00024515,95829.0,95823.0,0.01284]
[1763294877214,0.01637144,95828.0,95823.0,0.01284]
[1763294877554,0.00024515,95829.0,95823.0,0.01284]
[1763294877961,0.00024515,95829.0,95823.0,0.01184]
[1763294878367,0.00024515,95829.0,95823.0,0.01284]
[1763294878782,0.00024515,95829.0,95823.0,0.01184]
[1763294879174,0.00024515,95829.0,95823.0,0.01284]
[1763294879579,0.00024515,95829.0,95823.0,0.001]
[1763294880632,0.01637186,95828.0,95823.0,0.001]
[1763294881629,0.01637186,95828.0,95821.0,0.01161]
[1763294882016,0.01637186,95828.0,95823.0,0.001]
[1763294882424,0.01637186,95828.0,95821.0,0.01161]
[1763294882625,0.01637186,95828.0,95821.0,0.01261]
[1763294885348,0.01637186,95828.0,95821.0,0.01161]
[1763294885554,0.01637186,95828.0,95822.0,0.03950309]
[1763294885706,0.01637186,95828.0,95822.0,0.06037512]
[1763294885901,0.01637186,95828.0,95823.0,0.02431]
[1763294886684,0.01637186,95828.0,95824.0,0.02087159]
[1763294886933,0.01637186,95828.0,95825.0,0.02087138]
[1763294887134,0.01637186,95828.0,95826.0,0.02816961]
[1763294887333,0.01637186,95828.0,95823.0,0.02431]
[1763294888276,0.01637186,95828.0,95825.0,0.002]
[1763294888480,0.01637186,95828.0,95825.0,0.001]
[1763294888667,0.01637186,95828.0,95825.0,0.02431]
[1763294890513,0.01637186,95828.0,95825.0,0.02531]
[1763294890734,0.01637186,95828.0,95825.0,0.02631]
[1763294905439,0.01637186,95828.0,95826.0,0.01198]
[1763294905740,0.01637186,95828.0,95827.0,0.02463]
[1763294905937,0.01637186,95828.0,95827.0,0.04422748]
[1763294906142,0.01637186,95828.0,95827.0,0.02463]
[1763294907155,0.01637186,95828.0,95827.0,0.02563]
[1763294907740,0.01637186,95828.0,95827.0,0.001]
[1763294908387,0.01637186,95828.0,95827.0,0.002]
[1763294908819,0.01637186,95828.0,95827.0,0.001]
[1763294909014,0.01637186,95828.0,95822.0,0.14575477]
[1763294909231,0.01637186,95828.0,95827.0,0.001]
[1763294909848,0.01637186,95828.0,95822.0,0.17038477]
[1763294910047,0.01637186,95828.0,95822.0,0.17138477]
[1763294910450,0.01637186,95828.0,95827.0,0.001]
[1763294910654,0.01637186,95828.0,95822.0,0.17138477]
[1763294911047,0.0163714,95827.0,95823.0,0.02463]
[1763294911455,0.01637186,95828.0,95823.0,0.02463]
[1763294911658,0.01637186,95828.0,95827.0,0.001]
[1763294912108,0.01637186,95828.0,95823.0,0.02463]
[1763294912591,0.01637186,95828.0,95827.0,0.001]
[1763294913423,0.01637186,95828.0,95826.0,0.01165]
[1763294914247,0.03274339,95828.0,95826.0,0.01165]
[1763294914848,0.03274339,95828.0,95827.0,0.001]
[1763294915679,0.03274339,95828.0,95826.0,0.03733]
[1763294915923,0.03274339,95828.0,95827.0,0.001]
[1763294916140,0.03274339,95828.0,95827.0,0.02568]
[1763294917938,0.03274339,95828.0,95827.0,0.02668]
[1763294919959,0.03274339,95828.0,95827.0,0.04624948]
[1763294920353,0.03274339,95828.0,95827.0,0.02156948]
[1763294920906,0.03274339,95828.0,95827.0,0.002]
[1763294922811,0.05556949,95828.0,95827.0,0.002]
[1763294923170,0.05556949,95828.0,95827.0,0.001]
[1763294923925,0.05556949,95828.0,95822.0,0.14575477]
[1763294924114,0.03274339,95828.0,95822.0,0.14575477]
[1763294924359,0.03274339,95828.0,95805.0,0.01165]
[1763294924360,0.01955525,95827.0,95805.0,0.01165]
[1763294924528,0.00326715,95826.0,95805.0,9.89e-05]
[1763294924735,0.01955525,95825.0,95805.0,9.89e-05]
[1763294924952,0.00326715,95824.0,95805.0,9.89e-05]
[1763294925085,0.01955525,95823.0,95805.0,9.89e-05]
[1763294925285,0.00326715,95822.0,95805.0,9.89e-05]
[1763294925535,0.01955525,95821.0,95806.0,0.01157698]
[1763294925837,0.01955525,95821.0,95805.0,0.0247789]
[1763294926069,0.03136338,95827.0,95805.0,9.89e-05]
[1763294926292,0.0228103,95826.0,95805.0,9.89e-05]